{"text_format":"1","workbook":"xlsx","n_sheets":11,"sheets":["Gráfico2","VIATICOS","ANTICIPOS_VIATICOS","FOJA ORDINARIA","ANEXO B2","MOVILIDAD","Gráfico1","ANEXO B1","Orden de Servicio_ANEXO F","TABLAS","Orden de Servicio"],"not_rendered":{"charts":4,"images":8,"macros":1,"external_links":1,"defined_names":44,"comments":0,"pivot_tables":0},"unopened":[{"sheet":"Gráfico2","index":0,"reason":"not_a_worksheet"},{"sheet":"Gráfico1","index":6,"reason":"not_a_worksheet"}],"bounds":{"document_bytes":16777216,"sheet_cells":100000,"rows_first":2000,"rows_last":500,"rows_between":2000,"halvings":0,"cell_chars":16384,"cell_head_chars":4096},"cells_cut":0,"cells_raw":0,"read":"whole","date_system":"1900"}

{"sheet":"VIATICOS","index":1,"n_rows":66,"n_cols":9,"rows_kept":66,"cut":false,"hidden":false,"merged":[[1,6,1,8],[10,2,10,5],[16,7,16,8],[5,0,5,8],[8,0,8,2],[8,3,8,8],[10,7,10,8],[12,5,12,8],[14,4,14,8],[2,6,2,8],[10,0,10,1],[12,0,12,4],[14,0,14,3],[16,0,16,1],[16,3,16,5],[18,0,18,2],[18,3,18,8],[70,3,70,7],[62,4,62,6],[54,1,54,8],[52,0,52,6],[62,0,62,3],[62,7,62,8],[51,1,51,6],[70,0,70,2],[20,1,20,6],[73,6,73,8],[64,0,64,8],[66,3,66,6],[67,3,67,6],[68,0,68,3]]}
[]
[null,null,null,null,null,null,"Ámbito de Prestación de Servicios:"]
[null,null,null,null,null,null,"PRESIDENCIA"]
[]
[]
["ORDEN DE LIQUIDACIÓN DE VIATICOS O MOVILIDAD"]
[]
[]
["Apellido y Nombre: ",null,null,"GONZALEZ, LUCAS DAVID"]
[]
["Legajo Cont:",null,{"$f":"LOOKUP(D9,Tabla10[Nombre],Tabla10[LEGAJO])","v":370811},null,null,null,"Cargo"]
[]
["Localidad de Asiento habitual:"]
[]
["Objeto de la comisión:"]
[]
["Días totales:",null,{"$f":"COUNTIF($I$22:$I$52,\">0\")","v":0},{"$f":"CONCATENATE(\"(\",LOOKUP($C$17,Tabla4[DIAS],Tabla4[LETRAS]),\")\")","v":"(Cero)"},null,null,"Mes y Año:","2024-04-01"]
[]
["Escala de Valores:",null,null,"Hasta Personal Adm. Publica Pcial. o Director General, Pcial. O Equiv. ($32.678)"]
[]
["DIA","DESTINO DE LA COMISION",null,null,null,null,null,"%","$"]
[1,null,null,null,null,null,null,null,{"$f":"IF($B22>0,$H22*LOOKUP($D$19,Tabla3[ESCALA],Tabla3[VALOR]),\"\")","v":""}]
[2,null,null,null,null,null,null,null,{"$f":"IF($B23>0,$H23*LOOKUP($D$19,Tabla3[ESCALA],Tabla3[VALOR]),\"\")","v":""}]
[3,null,null,null,null,null,null,null,{"$f":"IF($B24>0,$H24*LOOKUP($D$19,Tabla3[ESCALA],Tabla3[VALOR]),\"\")","v":""}]
[4,null,null,null,null,null,null,null,{"$f":"IF($B25>0,$H25*LOOKUP($D$19,Tabla3[ESCALA],Tabla3[VALOR]),\"\")","v":""}]
[5,null,null,null,null,null,null,null,{"$f":"IF($B26>0,$H26*LOOKUP($D$19,Tabla3[ESCALA],Tabla3[VALOR]),\"\")","v":""}]
[6,null,null,null,null,null,null,null,{"$f":"IF($B27>0,$H27*LOOKUP($D$19,Tabla3[ESCALA],Tabla3[VALOR]),\"\")","v":""}]
[7,null,null,null,null,null,null,null,{"$f":"IF($B28>0,$H28*LOOKUP($D$19,Tabla3[ESCALA],Tabla3[VALOR]),\"\")","v":""}]
[8,null,null,null,null,null,null,null,{"$f":"IF($B29>0,$H29*LOOKUP($D$19,Tabla3[ESCALA],Tabla3[VALOR]),\"\")","v":""}]
[9,null,null,null,null,null,null,null,{"$f":"IF($B30>0,$H30*LOOKUP($D$19,Tabla3[ESCALA],Tabla3[VALOR]),\"\")","v":""}]
[10,null,null,null,null,null,null,null,{"$f":"IF($B31>0,$H31*LOOKUP($D$19,Tabla3[ESCALA],Tabla3[VALOR]),\"\")","v":""}]
[11,null,null,null,null,null,null,null,{"$f":"IF($B32>0,$H32*LOOKUP($D$19,Tabla3[ESCALA],Tabla3[VALOR]),\"\")","v":""}]
[12,null,null,null,null,null,null,null,{"$f":"IF($B33>0,$H33*LOOKUP($D$19,Tabla3[ESCALA],Tabla3[VALOR]),\"\")","v":""}]
[13,null,null,null,null,null,null,null,{"$f":"IF($B34>0,$H34*LOOKUP($D$19,Tabla3[ESCALA],Tabla3[VALOR]),\"\")","v":""}]
[14,null,null,null,null,null,null,null,{"$f":"IF($B35>0,$H35*LOOKUP($D$19,Tabla3[ESCALA],Tabla3[VALOR]),\"\")","v":""}]
[15,null,null,null,null,null,null,null,{"$f":"IF($B36>0,$H36*LOOKUP($D$19,Tabla3[ESCALA],Tabla3[VALOR]),\"\")","v":""}]
[16,null,null,null,null,null,null,null,{"$f":"IF($B37>0,$H37*LOOKUP($D$19,Tabla3[ESCALA],Tabla3[VALOR]),\"\")","v":""}]
[17,null,null,null,null,null,null,null,{"$f":"IF($B38>0,$H38*LOOKUP($D$19,Tabla3[ESCALA],Tabla3[VALOR]),\"\")","v":""}]
[18,null,null,null,null,null,null,null,{"$f":"IF($B39>0,$H39*LOOKUP($D$19,Tabla3[ESCALA],Tabla3[VALOR]),\"\")","v":""}]
[19,null,null,null,null,null,null,null,{"$f":"IF($B40>0,$H40*LOOKUP($D$19,Tabla3[ESCALA],Tabla3[VALOR]),\"\")","v":""}]
[20,null,null,null,null,null,null,null,{"$f":"IF($B41>0,$H41*LOOKUP($D$19,Tabla3[ESCALA],Tabla3[VALOR]),\"\")","v":""}]
[21,null,null,null,null,null,null,null,{"$f":"IF($B42>0,$H42*LOOKUP($D$19,Tabla3[ESCALA],Tabla3[VALOR]),\"\")","v":""}]
[22,null,null,null,null,null,null,null,{"$f":"IF($B43>0,$H43*LOOKUP($D$19,Tabla3[ESCALA],Tabla3[VALOR]),\"\")","v":""}]
[23,null,null,null,null,null,null,null,{"$f":"IF($B44>0,$H44*LOOKUP($D$19,Tabla3[ESCALA],Tabla3[VALOR]),\"\")","v":""}]
[24,null,null,null,null,null,null,null,{"$f":"IF($B45>0,$H45*LOOKUP($D$19,Tabla3[ESCALA],Tabla3[VALOR]),\"\")","v":""}]
[25,null,null,null,null,null,null,null,{"$f":"IF($B46>0,$H46*LOOKUP($D$19,Tabla3[ESCALA],Tabla3[VALOR]),\"\")","v":""}]
[26,null,null,null,null,null,null,null,{"$f":"IF($B47>0,$H47*LOOKUP($D$19,Tabla3[ESCALA],Tabla3[VALOR]),\"\")","v":""}]
[27,null,null,null,null,null,null,null,{"$f":"IF($B48>0,$H48*LOOKUP($D$19,Tabla3[ESCALA],Tabla3[VALOR]),\"\")","v":""}]
[28,null,null,null,null,null,null,null,{"$f":"IF($B49>0,$H49*LOOKUP($D$19,Tabla3[ESCALA],Tabla3[VALOR]),\"\")","v":""}]
[29,null,null,null,null,null,null,null,{"$f":"IF($B50>0,$H50*LOOKUP($D$19,Tabla3[ESCALA],Tabla3[VALOR]),\"\")","v":""}]
[30,null,null,null,null,null,null,null,{"$f":"IF($B51>0,$H51*LOOKUP($D$19,Tabla3[ESCALA],Tabla3[VALOR]),\"\")","v":""}]
[31,null,null,null,null,null,null,null,{"$f":"IF($B52>0,$H52*LOOKUP($D$19,Tabla3[ESCALA],Tabla3[VALOR]),\"\")","v":""}]
[null,null,null,null,null,null,null,"TOTAL $",{"$f":"SUM(I22:I52)","v":0}]
[]
["Son:",{"$f":"IF($I$53>0,num2let($I$53),\"\")","v":""}]
[]
[]
[]
[]
[]
[]
[]
["Firma y Sello Funcionario Autorizante",null,null,null,"(Sello Medalla)",null,null,"Firma del agente"]
[]
["“El funcionario autorizante, certifica que durante los días consignados, el agente se encuentra afectado a la Comisión de Servicio arriba descripta, la que implica su desplazamiento a más de 30 km de la localidad en la que presta efectiva y permanentemente sus servicios.” (Dto. 388/07 Art. 2º)"]
[null,null,null,null,null,null,null,{"$f":"SUM($H$22:$H$52)","v":0}]

{"sheet":"ANTICIPOS_VIATICOS","index":2,"n_rows":67,"n_cols":9,"rows_kept":67,"cut":false,"hidden":true,"merged":[[10,0,10,1],[10,2,10,5],[10,7,10,8],[1,6,1,8],[2,6,2,8],[5,0,5,8],[8,0,8,2],[8,3,8,8],[12,0,12,4],[12,5,12,8],[14,0,14,3],[14,4,14,8],[16,0,16,1],[16,3,16,5],[16,7,16,8],[29,1,29,6],[18,0,18,2],[18,3,18,8],[20,1,20,6],[21,1,21,6],[22,1,22,6],[23,1,23,6],[24,1,24,6],[25,1,25,6],[26,1,26,6],[27,1,27,6],[28,1,28,6],[41,1,41,6],[30,1,30,6],[31,1,31,6],[32,1,32,6],[33,1,33,6],[34,1,34,6],[35,1,35,6],[36,1,36,6],[37,1,37,6],[38,1,38,6],[39,1,39,6],[40,1,40,6],[56,1,56,8],[42,1,42,6],[43,1,43,6],[44,1,44,6],[45,1,45,6],[46,1,46,6],[49,1,49,6],[50,1,50,6],[51,1,51,6],[54,0,54,6],[74,6,74,8],[57,0,57,2],[57,4,57,6],[63,0,63,3],[63,4,63,6],[63,7,63,8],[65,0,65,8],[67,3,67,6],[68,3,68,6],[69,0,69,3],[71,0,71,2],[71,3,71,7]]}
[]
[null,null,null,null,null,null,"Ámbito de Prestación de Servicios:"]
[null,null,null,null,null,null,"DPTO. INFRAESTRUCTURA Y SERVICIOS GENERALES"]
[]
[]
["ORDEN DE LIQUIDACIÓN DE VIATICOS O MOVILIDAD"]
[]
[]
["Apellido y Nombre: ",null,null,"OSUNA, HÈCTOR"]
[]
["Legajo Cont:",null,{"$f":"LOOKUP(D9,Tabla10[Nombre],Tabla10[LEGAJO])","v":363358},null,null,null,"Cargo","Chofer"]
[]
["Localidad de Asiento habitual:",null,null,null,null,"La Plata"]
[]
["Objeto de la comisión:",null,null,null,"Traslado de persona"]
[]
["Días totales:",null,{"$f":"COUNTIF($I$22:$I$52,\">0\")","v":2},{"$f":"CONCATENATE(\"(\",LOOKUP($C$17,Tabla4[DIAS],Tabla4[LETRAS]),\")\")","v":"(Dos)"},null,null,"Mes y Año:","2023-05-01"]
[]
["Escala de Valores:",null,null,"Hasta Personal Adm. Publica Pcial. o Director General, Pcial. O Equiv. ($11.760)"]
[]
["DIA","DESTINO DE LA COMISION",null,null,null,null,null,"%","$"]
[1,null,null,null,null,null,null,null,{"$f":"IF($B22>0,$H22*LOOKUP($D$19,Tabla3[ESCALA],Tabla3[VALOR]),\"\")","v":""}]
[2,"La Plata - Tandil",null,null,null,null,null,1,{"$f":"IF($B23>0,$H23*LOOKUP($D$19,Tabla3[ESCALA],Tabla3[VALOR]),\"\")","v":36762}]
[3,"Tandil - La Plata",null,null,null,null,null,0.5,{"$f":"IF($B24>0,$H24*LOOKUP($D$19,Tabla3[ESCALA],Tabla3[VALOR]),\"\")","v":18381}]
[4,null,null,null,null,null,null,null,{"$f":"IF($B25>0,$H25*LOOKUP($D$19,Tabla3[ESCALA],Tabla3[VALOR]),\"\")","v":""}]
[5,null,null,null,null,null,null,null,{"$f":"IF($B26>0,$H26*LOOKUP($D$19,Tabla3[ESCALA],Tabla3[VALOR]),\"\")","v":""}]
[6,null,null,null,null,null,null,null,{"$f":"IF($B27>0,$H27*LOOKUP($D$19,Tabla3[ESCALA],Tabla3[VALOR]),\"\")","v":""}]
[7,null,null,null,null,null,null,null,{"$f":"IF($B28>0,$H28*LOOKUP($D$19,Tabla3[ESCALA],Tabla3[VALOR]),\"\")","v":""}]
[8,null,null,null,null,null,null,null,{"$f":"IF($B29>0,$H29*LOOKUP($D$19,Tabla3[ESCALA],Tabla3[VALOR]),\"\")","v":""}]
[9,null,null,null,null,null,null,null,{"$f":"IF($B30>0,$H30*LOOKUP($D$19,Tabla3[ESCALA],Tabla3[VALOR]),\"\")","v":""}]
[10,null,null,null,null,null,null,null,{"$f":"IF($B31>0,$H31*LOOKUP($D$19,Tabla3[ESCALA],Tabla3[VALOR]),\"\")","v":""}]
[11,null,null,null,null,null,null,null,{"$f":"IF($B32>0,$H32*LOOKUP($D$19,Tabla3[ESCALA],Tabla3[VALOR]),\"\")","v":""}]
[12,null,null,null,null,null,null,null,{"$f":"IF($B33>0,$H33*LOOKUP($D$19,Tabla3[ESCALA],Tabla3[VALOR]),\"\")","v":""}]
[13,null,null,null,null,null,null,null,{"$f":"IF($B34>0,$H34*LOOKUP($D$19,Tabla3[ESCALA],Tabla3[VALOR]),\"\")","v":""}]
[14,null,null,null,null,null,null,null,{"$f":"IF($B35>0,$H35*LOOKUP($D$19,Tabla3[ESCALA],Tabla3[VALOR]),\"\")","v":""}]
[15,null,null,null,null,null,null,null,{"$f":"IF($B36>0,$H36*LOOKUP($D$19,Tabla3[ESCALA],Tabla3[VALOR]),\"\")","v":""}]
[16,null,null,null,null,null,null,null,{"$f":"IF($B37>0,$H37*LOOKUP($D$19,Tabla3[ESCALA],Tabla3[VALOR]),\"\")","v":""}]
[17,null,null,null,null,null,null,null,{"$f":"IF($B38>0,$H38*LOOKUP($D$19,Tabla3[ESCALA],Tabla3[VALOR]),\"\")","v":""}]
[18,null,null,null,null,null,null,null,{"$f":"IF($B39>0,$H39*LOOKUP($D$19,Tabla3[ESCALA],Tabla3[VALOR]),\"\")","v":""}]
[19,null,null,null,null,null,null,null,{"$f":"IF($B40>0,$H40*LOOKUP($D$19,Tabla3[ESCALA],Tabla3[VALOR]),\"\")","v":""}]
[20,null,null,null,null,null,null,null,{"$f":"IF($B41>0,$H41*LOOKUP($D$19,Tabla3[ESCALA],Tabla3[VALOR]),\"\")","v":""}]
[21,null,null,null,null,null,null,null,{"$f":"IF($B42>0,$H42*LOOKUP($D$19,Tabla3[ESCALA],Tabla3[VALOR]),\"\")","v":""}]
[22,null,null,null,null,null,null,null,{"$f":"IF($B43>0,$H43*LOOKUP($D$19,Tabla3[ESCALA],Tabla3[VALOR]),\"\")","v":""}]
[23,null,null,null,null,null,null,null,{"$f":"IF($B44>0,$H44*LOOKUP($D$19,Tabla3[ESCALA],Tabla3[VALOR]),\"\")","v":""}]
[24,null,null,null,null,null,null,null,{"$f":"IF($B45>0,$H45*LOOKUP($D$19,Tabla3[ESCALA],Tabla3[VALOR]),\"\")","v":""}]
[25,null,null,null,null,null,null,null,{"$f":"IF($B46>0,$H46*LOOKUP($D$19,Tabla3[ESCALA],Tabla3[VALOR]),\"\")","v":""}]
[26,null,null,null,null,null,null,null,{"$f":"IF($B47>0,$H47*LOOKUP($D$19,Tabla3[ESCALA],Tabla3[VALOR]),\"\")","v":""}]
[27,null,null,null,null,null,null,null,{"$f":"IF($B48>0,$H48*LOOKUP($D$19,Tabla3[ESCALA],Tabla3[VALOR]),\"\")","v":""}]
[28,null,null,null,null,null,null,null,{"$f":"IF($B49>0,$H49*LOOKUP($D$19,Tabla3[ESCALA],Tabla3[VALOR]),\"\")","v":""}]
[29,null,null,null,null,null,null,null,{"$f":"IF($B50>0,$H50*LOOKUP($D$19,Tabla3[ESCALA],Tabla3[VALOR]),\"\")","v":""}]
[30,null,null,null,null,null,null,null,{"$f":"IF($B51>0,$H51*LOOKUP($D$19,Tabla3[ESCALA],Tabla3[VALOR]),\"\")","v":""}]
[31,null,null,null,null,null,null,null,{"$f":"IF($B52>0,$H52*LOOKUP($D$19,Tabla3[ESCALA],Tabla3[VALOR]),\"\")","v":""}]
[null,null,null,null,null,null,null,"Subtotal $",{"$f":"SUM(I22:I52)","v":55143}]
[null,null,null,null,null,null,null,"Anticipos $",15876]
[null,null,null,null,null,null,null,"TOTAL $",{"$f":"I53+(-I54)","v":39267}]
[]
["Son:",{"$f":"CONCATENATE(\"(\",num2let($I$55),\")\")","v":"( treinta y nueve mil doscientos sesenta y siete pesos)"}]
[]
[]
[]
[]
[]
[]
["Firma y Sello Funcionario Autorizante",null,null,null,"(Sello Medalla)",null,null,"Firma del agente"]
[]
["“El funcionario autorizante, certifica que durante los días consignados, el agente se encuentra afectado a la Comisión de Servicio arriba descripta, la que implica su desplazamiento a más de 30 km de la localidad en la que presta efectiva y permanentemente sus servicios.” (Dto. 388/07 Art. 2º)"]
[null,null,null,null,null,null,null,{"$f":"SUM($H$22:$H$52)","v":1.5}]

{"sheet":"FOJA ORDINARIA","index":3,"n_rows":52,"n_cols":9,"rows_kept":52,"cut":false,"hidden":true,"merged":[[41,0,41,1],[41,6,41,9],[50,6,50,9],[50,0,50,2],[51,3,51,5],[38,8,38,9],[21,0,21,9],[16,7,16,8],[17,7,17,8],[18,7,18,8],[24,8,24,9],[27,8,27,9],[30,6,30,9],[30,0,30,1],[25,2,25,6],[32,0,32,9],[35,8,35,9],[36,2,36,6],[14,0,14,3],[14,4,14,9],[17,1,17,3],[13,11,13,13],[18,1,18,3],[12,0,12,2],[12,3,12,9],[1,0,1,4],[4,0,4,9],[6,0,6,2],[6,3,6,9],[8,0,8,2],[8,3,8,9],[10,0,10,2],[10,3,10,5],[10,8,10,9]]}
[]
[]
[]
[]
["FOJA  DE COMISION ORDINARIA"]
[]
["Apellido y Nombre: "]
[]
["Jerarquía"]
[]
["Legajo Cont. Nº: ",null,null,null,null,null,"CUIL:"]
[]
["Dependencia:"]
[]
["Localidad de Asiento Habitual:"]
[]
[null,null,null,null,"HORA","DIA","MES","AÑO"]
[null,"Salida del asiento habitual"]
[null,"Llegada al asiento habitual"]
[]
[]
["CERTIFICACION EN DEPENDENCIA DESTINO DE LA COMISION"]
[]
[]
[null,null,"FOLIO","HORA","DIA","MES","AÑO",null,"Localidad"]
[null,null,"LLEGADA"]
[]
[null,null,null,null,null,null,null,null,"Partido"]
[]
[]
["(Sello Medalla Dependencia)",null,null,null,null,null,"Firma y Sello aclaratorio"]
[]
["CERTIFICACION EN DEPENDENCIA DESTINO DE LA COMISION"]
[]
[]
[null,null,"FOLIO","HORA","DIA","MES","AÑO",null,"Localidad"]
[null,null,"SALIDA"]
[]
[null,null,null,null,null,null,null,null,"Partido"]
[]
[]
["(Sello Medalla Dependencia)",null,null,null,null,null,"Firma y Sello aclaratorio"]
[]
[]
[]
[]
[]
[]
[]
[]
["Firma y Sello Aclaratorio\n del funcionario que ordenó la comisión",null,null,null,null,null,"Firma agente comisionado"]
[null,null,null,"(Sello Medalla)"]

{"sheet":"ANEXO B2","index":4,"n_rows":41,"n_cols":6,"rows_kept":41,"cut":false,"hidden":true,"merged":[[40,4,40,6],[12,1,12,6],[10,0,10,6],[14,4,14,6],[33,0,33,3],[20,0,20,4],[20,5,20,6],[22,0,22,6],[18,1,18,6],[23,1,23,6],[25,0,25,6],[31,4,31,6],[30,9,30,12],[0,0,0,2],[5,0,5,2],[8,0,8,6],[14,1,14,2],[16,1,16,6]]}
[]
[]
[]
[]
[]
[]
[]
[]
["ANEXO B2"]
[]
["Sr. Director Provincial de Administración CYT:"]
[]
["El suscripto:","OSUNA, HÈCTOR"]
[]
["Legajo:",361110,null,"CUIL:",{"$f":"LOOKUP(B13,Tabla10[Nombre],Tabla10[Cuil])","v":"20-35611287-4"}]
[]
["Cargo","Chofer"]
[]
["Perteneciente a:"]
[]
["Solicita autorice el anticipo de Viáticos por la cantidad de Pesos:",null,null,null,null,1440]
[]
[{"$f":"CONCATENATE(\"(\",num2let($F$21),\")\")","v":"( un mil cuatrocientos cuarenta pesos)"}]
[]
[]
["para ser utilizados en el desempeño de la comisión dispuesta por la Superioridad."]
[]
[]
[]
[]
[]
[null,null,null,null,"Firma y Sello Agente"]
[]
[{"$f":"CONCATENATE(\"La Plata, \",TEXT(TODAY(),\"dd/mm/yy\"))","v":"La Plata, 18/04/24"}]
[]
[]
[]
[]
[]
["AUTORIZADO"]
[null,null,null,null,"Firma y Sello D.G.A."]

{"sheet":"MOVILIDAD","index":5,"n_rows":65,"n_cols":7,"rows_kept":65,"cut":false,"hidden":true,"merged":[[1,0,1,6],[5,0,5,6],[8,0,8,1],[8,2,8,6],[10,2,10,3],[10,5,10,6],[12,0,12,2],[12,3,12,6],[14,0,14,1],[14,2,14,6],[16,0,16,1],[16,2,16,3],[16,5,16,6],[29,1,29,4],[18,1,18,4],[19,1,19,4],[20,1,20,4],[21,1,21,4],[22,1,22,4],[23,1,23,4],[24,1,24,4],[25,1,25,4],[26,1,26,4],[27,1,27,4],[28,1,28,4],[41,1,41,4],[30,1,30,4],[31,1,31,4],[32,1,32,4],[33,1,33,4],[34,1,34,4],[35,1,35,4],[36,1,36,4],[37,1,37,4],[38,1,38,4],[39,1,39,4],[40,1,40,4],[61,0,61,2],[61,4,61,6],[42,1,42,4],[43,1,43,4],[44,1,44,4],[45,1,45,4],[46,1,46,4],[47,1,47,4],[48,1,48,4],[49,1,49,4],[52,0,52,6],[53,0,53,1],[53,3,53,4],[70,0,70,1],[70,2,70,5],[73,4,73,6],[63,0,63,2],[63,4,63,6],[64,0,64,6],[66,2,66,4],[67,2,67,4],[68,0,68,2]]}
[]
[]
[]
[]
[]
["ORDEN DE LIQUIDACIÓN DE VIÁTICOS"]
[]
[]
["Apellido y Nombre:"]
[]
["Legajo Nº:",null,null,null,"Jerarquía:"]
[]
["Localidad de Asiento habitual:"]
[]
["Objeto de la comisión:"]
[]
["Días totales:",null,null,null,"Mes y Año:"]
[]
["DIA","DESTINO",null,null,null,"%","$"]
[1,null,null,null,null,{"$f":"IF(B20>0,\"100%\",\" \")","v":" "},{"$f":"IF(B20>0,$J$2*F20,\" \")","v":" "}]
[2,null,null,null,null,{"$f":"IF(B21>0,\"100%\",\" \")","v":" "},{"$f":"IF(B21>0,$J$2*F21,\" \")","v":" "}]
[3]
[4]
[5]
[6]
[7]
[8]
[9]
[10]
[11]
[12,null,null,null,null," "," "]
[13,null,null,null,null," "," "]
[14,null,null,null,null," "," "]
[15,null,null,null,null," "," "]
[16,null,null,null,null," "," "]
[17,null,null,null,null," "," "]
[18,null,null,null,null," "," "]
[19,null,null,null,null," "," "]
[20,null,null,null,null," "," "]
[21,null,null,null,null," "," "]
[22,null,null,null,null," "," "]
[23,null,null,null,null," "," "]
[24,null,null,null,null," "," "]
[25,null,null,null,null," "," "]
[26,null,null,null,null," "," "]
[27,null,null,null,null," "," "]
[28,null,null,null,null," "," "]
[29,null,null,null,null," "," "]
[30,null,null,null,null," "," "]
[31,null,null,null,null," "," "]
[null,null,null,null,null,"TOTAL $"]
[]
[]
[]
[]
[]
[]
[]
[]
[]
[]
["Firma y Sello Funcionario Autorizante",null,null,"SELLO MEDALLA","Firma del agente"]
[]
[]
["“El funcionario autorizante, certifica que durante los días consignados, el agente se encuentra afectado a la Comisión de Servicio arriba descripta, la que implica su desplazamiento a más de 30 km de la localidad en la que presta efectiva y permanentemente sus servicios.” (Dto. 388/07 Art. 2º)"]

{"sheet":"ANEXO B1","index":7,"n_rows":39,"n_cols":7,"rows_kept":39,"cut":false,"hidden":true,"merged":[[38,4,38,6],[12,3,12,5],[15,1,15,2],[15,4,15,6],[23,1,23,6],[28,0,28,6],[29,1,29,2],[19,1,19,6],[21,1,21,6],[30,1,30,6],[0,0,0,2],[5,0,5,2],[8,0,8,6],[10,0,10,6],[16,1,16,6]]}
[]
[]
[]
[]
[]
[]
[]
[]
["ANEXO B1"]
[]
["RECIBO DE VIÀTICO"]
[]
[null,null,null,"RECIBO N°",null,null,59]
[]
[]
["Legajo:",{"$f":"LOOKUP(B17,Tabla10[Nombre],Tabla10[LEGAJO])","v":370759},null,"CUIL:",{"$f":"LOOKUP(B17,Tabla10[Nombre],Tabla10[Cuil])","v":"20-32147020-4"}]
["Agente:","GREIZERSTEIN, EDUARDO"]
[]
[]
["Cargo","Asesor"]
[]
["Perteneciente a:","COMISION DE INVESTIGACIONES CIENTIFICAS (C..I.C.)"]
[]
["LA PLATA"," 11 DE MARZO DE 2019"]
[]
[]
["Recibì de la Tesoreria de la Comisiòn de Investigaciones la cantidad  de Pesos(enletras)"]
[]
[{"$f":"CONCATENATE(\"(\",num2let($B$30),\")\")","v":"( tres mil seiscientos pesos)"}]
[null,3600,null,null,"(en numeros)"]
[]
[]
[]
[]
[]
[]
[]
[]
[null,null,null,null,"Firma del interesado"]

{"sheet":"Orden de Servicio_ANEXO F","index":8,"n_rows":46,"n_cols":6,"rows_kept":46,"cut":false,"hidden":false,"merged":[[41,1,41,3],[14,3,14,4],[16,3,16,4],[28,3,28,7],[29,3,29,7],[36,1,36,3],[40,1,40,3],[13,4,13,5],[5,1,5,7],[7,1,7,3],[8,1,8,3],[10,1,10,7],[12,3,12,6]]}
[]
[]
[]
[]
[]
[null,"ANEXO F"]
[]
[null,"PROVINCIA DE BUENOS AIRES"]
[null,"(COMISION DE INVESTIGACIONES CIENTIFICAS)"]
[]
[null,"ORDEN DE SERVICIO"]
[]
[null,"Apellido y Nombre",null,"ALFONSO, MALENA"]
[null,"Tipo y Número de Documento",null,"CUIL:",{"$f":"LOOKUP(D13,Tabla10[Nombre],Tabla10[Cuil])","v":"27-43301325-0"}]
[null,"Legajo o/Categoría",null,{"$f":"LOOKUP(D13,Tabla10[Nombre],Tabla10[LEGAJO])","v":374002}]
[null,"Comisión de Servicio"]
[null,"Lugar de Destino",null,"Carmen de Areco"]
[null,"Fechas:","Partida (dd/mm/aaaa)","2024-04-01"]
[null,null,"Regreso (dd/mm/aaaa)","2024-04-01"]
[null,"Objeto"]
[]
[null,"Motivación"]
[null,null,null,null,"                 "]
[]
[]
[]
[null,"Lugar y Fecha",null," La Plata, 1 de Abril de 2024"]
[]
[null,"COMISION DISPUESTA POR",null,"DIRECCION PROVINCIAL"]
[null,null,null,"DE COMUNICACION Y DIVULGACION CIENTIFICA"]
[]
[]
[null,null,null,null,null,"       ……………………………………….."]
[null,null,null,null,null,"         Firma y Sello del Jefe Inmediato"]
[]
[]
[null,"CONSTANCIA DE DESTINO"]
[]
[]
[]
[null,"………………………………………………..",null,null,null," ……………………………….."]
[null,"Firma y Sello de la Autoridad Competente",null,null,null,"Firma y Sello del Autorizante"]
[]
[]
[]
[null,"AUTORIZADO, pase al Departamento Liquidaciones, a sus efectos"]

{"sheet":"TABLAS","index":9,"n_rows":167,"n_cols":23,"rows_kept":167,"cut":false,"hidden":false,"merged":[[21,4,21,5]]}
["PERIODO",null,"PORCENTAJES",null,"ESCALA","VALOR",null,"DIAS","LETRAS",null,"JERARQUIAS",null,"CARGOS",null,"CONDICION",null,"DEPENDENCIAS",null,"Nombre","Cuil","LEGAJO",null,"LOCALIDADES"]
["2023-01-01",null,0.2,null,"Alojado con Ministro - Art. 5 Inc c) Dto. 388/07 ",0,null,0,"Cero",null,"Oficial Subayudante",null,"Administrativo",null,"Jerarquía",null,"COMISION DE INVESTIGACIONES CIENTIFICAS (C..I.C.)",null,"ACOSTA, RAMIRO SEBASTIAN","20-30303864-8",905900,null,"Almirante Brown"]
["2023-02-01",null,0.4,null,"Alojado con Subsecretario - Art. 5 Inc c) Dto. 388/07 ",36762,null,1,"Uno",null,"Oficial Ayudante",null,"Asesor",null,"Cargo",null,"COMISIÒNES ASESORAS HONORARIAS",null,"AGUIAR, GEORGINA ANABEL","27-33192795-9",802757,null,"Azul"]
["2023-03-01",null,0.5,null,"Hasta Personal Adm. Publica Pcial. o Director General, Pcial. O Equiv. ($32.678)",32678,null,2,"Dos",null,"Oficial Subinspector",null,"Asesor de Gabinete",null,null,null,"DELEG. SEC. ADMINS. (Campo)",null,"AGUIAR, MARIA DE LA PAZ","27-30876974-2",363363,null,"Bahia Blanca"]
["2023-04-01",null,0.7,null,"Ministro",0,null,3,"Tres",null,"Oficial Inspector",null,"Asesor de Presidencia",null,null,null,"DELEG. SEC. ADMINS. (Complejo 52 y 122)",null,"AINCHIL, JERONIMO ENRIQUE","23-14845799-9",0,null,"Balcarce"]
["2023-05-01",null,1,null,"Movilidad ($1.480,72)","1480.72",null,4,"Cuatro",null,"Oficial Principal",null,"Chofer",null,null,null,"DEPTO. COMUNICACIÓN Y DIFUSION CIENTIFICA",null,"ALEGRE, FELISA MARÍA","23-33159867-4",343601,null,"Berazateggui"]
["2023-06-01",null,1.5,null,"Seleccione aquí",0,null,5,"Cinco",null,"Subcomisario",null,"Comision Asesora Honoraria",null,null,null,"DIR. DE PUBLICACIONES Y CONTENIDOS ESPECIALES",null,"ALFONSO, MALENA","27-43301325-0",374002,null,"Bolivar"]
["2023-07-01",null,null,null,"Autoridades Superiores: Subsecretario o equivalente ($36.762)",36762,null,6,"Seis",null,"Comisario",null,"Director",null,null,null,"DIR. GESTION CIENTIFICA",null,"ALVAREZ, MARIA ALEJANDRA ALIC","27-16759649-0",344275,null,"Bolivar - Chascomus"]
["2023-08-01",null,null,null,null,null,null,7,"Siete",null,"Comisario Inspector",null,"Director General",null,null,null,"DIR. GESTION DE LA INNOVACION Y PROGRAMAS ESPECIALES",null,"ALVAREZ, NESTOR BAUTISTA","20-16153130-9",316419,null,"Buenos Aires"]
["2023-09-01",null,null,null,null,null,null,8,"Ocho",null,"Comisario Mayor",null,"Director Provincial",null,null,null,"DIR. PCIAL. DE COMUNICACIÓN Y DIVULGACION CIENTIFICA",null,"AMARILLO, JOSÉ NORBERTO","20-20058002-9",344145,null,"Campana"]
["2023-10-01",null,null,null,null,null,null,9,"Nueve",null,"Comisario General",null,"Investigador",null,null,null,"DIR. PCIAL. DE GESTION DE SEGUIMIENTO Y DESARROLLO DE LA ACT. CIENTIFICA",null,"ARMENDARIZ, LAURA CECILIA","27-17620520-8",314521,null,"Carmen de Areco"]
["2023-11-01",null,null,null,"VIATICOS ACTUALIZADOS DECRETO Nº DECRE-2022-2365-GDEBA-GPBA y MODFICATORIOSS",null,null,10,"Diez",null,"Oficial",null,"Jefe de Departamento",null,null,null,"DIR. PCIAL. DE VINCULACION Y TRANSFERENCIA",null,"ARMENTIA, MANUEL ALEJANDRO","20-27707803-2",361111,null,"Chacabuco"]
["2023-12-01",null,null,null,"ARTICULO 2: VIGENCIA DESDE EL 01/01/2023 SE INCREMENTARÀN AUTOMATICAMENTE",null,null,11,"Once",null,"Sargento",null,"Jefe de Gabinete",null,null,null,"DIR. PROVINCIAL DE ADMINISTRACION CIENTIFICA Y TECNICA",null,"AZZARO, ADRIAN PABLO","23-21797392-9",363367,null,"Chascomus"]
["2024-01-01",null,null,null,null,null,null,12,"Doce",null,"Subteniente",null,"Jerarquico",null,null,null,"DIR. SERVICIOS TECNICO Y ADMINISTRATIVOS",null,"BADENES, NATALIA","27-22863589-3",750755,null,"Coronel Brandsen"]
["2024-02-01",null,null,null,"MONTO VIÀTICOS: DECRETO 388/07 Y MODIFICATORIOS Nº 95/18 y Nº 2365/22",null,null,13,"Trece",null,"Teniente",null,"Miembro de Directorio",null,null,null,"DPTO. APOYO ADMINISTRATIVO",null,"BARIDON, JUAN","20-38772717-6",374989,null,"Esteban Echevarria"]
["2024-03-01",null,null,null,"MÒDULO LEY Nº 10.430          ",null,null,14,"Catorce",null,"Teniente 1º",null,"Pasante",null,null,null,"DPTO. CONVENIOS",null,"BARRESI, DAVID NICOLAS","20-29957708-3",374000,null,"Ezeiza"]
["2024-04-01",null,null,null,null,null,null,15,"Quince",null,"Capitán",null,"Personal Civil 10430",null,null,null,"DPTO. DELEGACION DE LA DCCIÒN. PCIAL. DE PERSONAL",null,"BARROS, HUGO ARIEL","20-27823684-7",370774,null,"Florencio Varela"]
["2024-05-01",null,null,null,"A PARTIR DEL 1ª DE ENERO 2024","MONTO 100%",null,16,"Dieciseis",null,"Mayor",null,"Presidente ",null,null,null,"DPTO. EVALUACIÒN DE LA ACTIVIDAD CIENTIFICA",null,"BASSANI MAC DOUGALL, ANTONELLA","27-37052259-1",363368,null,"General Pueyrredòn"]
["2024-06-01",null,null,null,"                      PERSONAL",23415,null,17,"Diecisiete",null,null,null,"Subsecretario",null,null,null,"DPTO. GESTION DOCUMENTAL",null,"BENASSI, ANDREA CARINA","23-26851486-4",316421,null,"General San Martin"]
["2024-07-01",null,null,null,"DIRECTORES PROVINCIALES",23415,null,18,"Dieciocho",null,null,null,"Vicepresidente",null,null,null,"DPTO. INFRAESTRUCTURA Y SERVICIOS GENERALES",null,"BENITEZ, FERNANDO GABRIEL","20-25606430-9",359703,null,"Hurlingham"]
["2024-08-01",null,null,null,"AUTORIDADES SUPERIORES",26341,null,19,"Diecinueve",null,null,null,null,null,null,null,"DPTO. INNOVACION CREDITO FISCAL",null,"BONESI, ALEJANDRO ROBERTO","20-14923006-9",295864,null,"Ituzaingò"]
["2024-09-01",null,null,null,null,null,null,20,"Veinte",null,null,null,null,null,null,null,"DPTO. LEGAL Y TECNICA",null,"BRARDINELLI, JUAN IGNACIO","20-28649793-5",750487,null,"Josè C. Paz"]
["2024-10-01",null,null,null,"A PARTIR DEL 1ª DE FEBRERO 2024","MONTO 100%",null,21,"Veintiuno",null,null,null,null,null,null,null,"DPTO. LIQUIDACIONES",null,"BRAVO, MARIA SOLEDAD","27-27384014-7",359705,null,"Junin"]
["2024-11-01",null,null,null,"                      PERSONAL",27723,null,22,"Veintidos",null,null,null,null,null,null,null,"DPTO. PRESUPUESTO Y CONTABLE",null,"CARRERO, MICAELA SOLEDAD","27-34727150-6",361311,null,"La Matanza"]
["2024-12-01",null,null,null,"DIRECTORES PROVINCIALES",27723,null,23,"Veintitres",null,null,null,null,null,null,null,"DPTO. PROGRAMAS ESPECIALES ",null,"CARRIZO, LEANDRO EZEQUIEL","20-33192748-2",370810,null,"La Plata"]
["2025-01-01",null,null,null,"AUTORIDADES SUPERIORES",31188,null,24,"Veinticuatro",null,null,null,null,null,null,null,"DPTO. SEGUIMIENTO DE LA ACTIVIDAD CIENTIFICA",null,"CASAS, CARMEN VERONICA","27-30464148-2",344148,null,"Lanus"]
["2025-02-01",null,null,null,null,null,null,25,"Veinticinco",null,null,null,null,null,null,null,"DPTO. SISTEMAS",null,"CASAS, MARCELA ALEJANDRA","27-24040996-3",316424,null,"Lezama"]
["2025-03-01",null,null,null,"A PARTIR DEL 1ª DE MARZO 2024","MONTO 100%",null,26,"Veintiseis",null,null,null,null,null,null,null,"DPTO. SUBSIDIOS",null,"CASTILLO, PATRICIA ADRIANA","27-17993092-2",259185,null,"Lomas de Zamora"]
["2025-04-01",null,null,null,"                      PERSONAL",30632,null,27,"Veintisiete",null,null,null,null,null,null,null,"DPTO. TESORERIA Y RENDICIONES",null,"CASTILLO, PAULA DANIELA","27-33192627-8",375317,null,"Lujan"]
["2025-05-01",null,null,null,"DIRECTORES PROVINCIALES",30632,null,28,"Veintiocho",null,null,null,null,null,null,null,"DPTO. TESORERIA Y RENDICIONES",null,"CELIS, ALAN AGUSTIN","20-41670801-1",370773,null,"Mar del Plata"]
["2025-06-01",null,null,null,"AUTORIDADES SUPERIORES",34460,null,29,"Veintinueve",null,null,null,null,null,null,null,"JUNTA DE CALIFICACIONES",null,"CELIS, MATIAS ANDRES","20-31785381-6",359707,null,"Mercedes"]
["2025-07-01",null,null,null,null,null,null,30,"Treinta",null,null,null,null,null,null,null,"MIEMBRO DE DIRECTORIO",null,"CELIS, VICTOR HUGO","20-27823986-2",344149,null,"Merlo"]
["2025-08-01",null,null,null,"A PARTIR DEL 1ª DE ABRIL 2024","MONTO 100%",null,31,"Treinta y uno",null,null,null,null,null,null,null,"PRESIDENCIA",null,"CENTENO, ANALÍA MERCEDES","27-18070243-7",359708,null,"Moreno"]
["2025-09-01",null,null,null,"                      PERSONAL",32678,null,null,null,null,null,null,null,null,null,null,"UNIDAD DE COORDINACION Y CONTROL DE GESTION",null,"CERMELE, DIEGO FEDERICO","20-32008187-5",344150,null,"Moròn"]
["2025-10-01",null,null,null,"DIRECTORES PROVINCIALES",32678,null,null,null,null,null,null,null,null,null,null,"VICEPRESIDENCIA",null,"CESCHIN TORRES, MARIA ETELVINA","27-35408142-9",374793,null,"Nueve de Julio"]
["2025-11-01",null,null,null,"AUTORIDADES SUPERIORES",36762,null,null,null,null,null,null,null,null,null,null,null,null,"CHAVERO BENOIT, LIS SOLANGE","27-34462079-8",370772,null,"Olavarria"]
["2025-12-01",null,null,null,null,null,null,null,null,null,null,null,null,null,null,null,null,null,"COMAN BECCO, RUBEN HORACIO","20-30728744-8",361119,null,"Pehuajó"]
["2026-01-01",null,null,null,null,null,null,null,null,null,null,null,null,null,null,null,null,null,"CORDOBA, FABRIZIO MARCELO JES","20-31531849-2",355527,null,"Pigüé"]
["2026-02-01",null,null,null,null,null,null,null,null,null,null,null,null,null,null,null,null,null,"CORDOVA FURINO, WALTER MAXIMILIANO","20-32870017-5",374904,null,"Presidente Peròn"]
["2026-03-01",null,null,null,null,null,null,null,null,null,null,null,null,null,null,null,null,null,"COSTA NAVE, OCTAVIO","20-36683902-0",374905,null,"Quilmes"]
["2026-04-01",null,null,null,null,null,null,null,null,null,null,null,null,null,null,null,null,null,"CUCCHIARELLI, AGUSTIN","20-35940559-7",374044,null,"San Fernando"]
["2026-05-01",null,null,null,null,null,null,null,null,null,null,null,null,null,null,null,null,null,"CUCCHIARELLI, SERGIO DANIEL","20-16728090-1",344253,null,"San Isidro"]
["2026-06-01",null,null,null,null,null,null,null,null,null,null,null,null,null,null,null,null,null,"CUESTA, SAMANTA ANABELA","27-30098449-0",0,null,"San Miguel"]
["2026-07-01",null,null,null,null,null,null,null,null,null,null,null,null,null,null,null,null,null,"DAMIA, MONICA PATRICIA","27-12530765-0",228661,null,"San vicente"]
["2026-08-01",null,null,null,null,null,null,null,null,null,null,null,null,null,null,null,null,null,"DE BAÑOS, CONSTANZA SOFÍA","27-29577870-4",359710,null,"Tandil"]
["2026-09-01",null,null,null,null,null,null,null,null,null,null,null,null,null,null,null,null,null,"DELGADILLO, MARIA LAURA","27-13581023-7",307836,null,"Tigre "]
["2026-10-01",null,null,null,null,null,null,null,null,null,null,null,null,null,null,null,null,null,"DESANTIS, GUILLERMINA","27-20294601-7",307833,null,"Tres de Febrero"]
["2026-11-01",null,null,null,null,null,null,null,null,null,null,null,null,null,null,null,null,null,"DESANTIS, MARIA LAURA","27-18121878-4",307835,null,"Vicente Lopez"]
["2026-12-01",null,null,null,null,null,null,null,null,null,null,null,null,null,null,null,null,null,"DESIMONE, NATALIA PAOLA","27-26946658-3",370771]
[null,null,null,null,null,null,null,null,null,null,null,null,null,null,null,null,null,null,"DI MAIO, MARIA INES","27-32869163-4",370770]
[null,null,null,null,null,null,null,null,null,null,null,null,null,null,null,null,null,null,"EDMAN, ALICIA MARCELA","27-18283376-8",344255]
[null,null,null,null,null,null,null,null,null,null,null,null,null,null,null,null,null,null,"FERREIRA, MARÍA OFELIA","27-29763799-7",344257]
[null,null,null,null,null,null,null,null,null,null,null,null,null,null,null,null,null,null,"FERREIRA, ROXANA ALEJANDRA","27-29763800-4",375313]
[null,null,null,null,null,null,null,null,null,null,null,null,null,null,null,null,null,null,"FERRER GOMEZ, REMIGIO ODÍN","23-22851899-9",354736]
[null,null,null,null,null,null,null,null,null,null,null,null,null,null,null,null,null,null,"FLEITAS, MARIO EDUARDO","20-26145362-3",370769]
[null,null,null,null,null,null,null,null,null,null,null,null,null,null,null,null,null,null,"FLORES, MARIA ALEJANDRA","27-28906755-3",367109]
[null,null,null,null,null,null,null,null,null,null,null,null,null,null,null,null,null,null,"FLORES, ROBERTO CIRIACO","23-12919984-9",316429]
[null,null,null,null,null,null,null,null,null,null,null,null,null,null,null,null,null,null,"FORTE, GUSTAVO FABIAN","23-18135909-9",336578]
[null,null,null,null,null,null,null,null,null,null,null,null,null,null,null,null,null,null,"GAIMARO, JUAN MARTÍN","20-28991402-2",359711]
[null,null,null,null,null,null,null,null,null,null,null,null,null,null,null,null,null,null,"GALLEGOS, ERNESTO","23-30368003-9",0]
[null,null,null,null,null,null,null,null,null,null,null,null,null,null,null,null,null,null,"GARRITANO, MARIA VICTORIA","27-42174479-9",370768]
[null,null,null,null,null,null,null,null,null,null,null,null,null,null,null,null,null,null,"GIORDANINO, ANTONELLA ASAEL","27-38677070-6",374042]
[null,null,null,null,null,null,null,null,null,null,null,null,null,null,null,null,null,null,"GODOY, SILVINA SANDRA","27-20467093-0",359713]
[null,null,null,null,null,null,null,null,null,null,null,null,null,null,null,null,null,null,"GOMEZ MARÍA CONSTANZA","27-3182066-4",631078]
[null,null,null,null,null,null,null,null,null,null,null,null,null,null,null,null,null,null,"GONZALEZ BALDRES, LAUTARO EZEQUIEL","20-34928856-8",363349]
[null,null,null,null,null,null,null,null,null,null,null,null,null,null,null,null,null,null,"GONZALEZ, JAVIER ALEJANDRO","20-29558325-9",359714]
[null,null,null,null,null,null,null,null,null,null,null,null,null,null,null,null,null,null,"GONZALEZ, LARA","27-42042838-9",374003]
[null,null,null,null,null,null,null,null,null,null,null,null,null,null,null,null,null,null,"GONZALEZ, LEONARDO SEBASTIAN","20-23281010-7",316431]
[null,null,null,null,null,null,null,null,null,null,null,null,null,null,null,null,null,null,"GONZALEZ, LUCAS DAVID","20-39981860-6",370811]
[null,null,null,null,null,null,null,null,null,null,null,null,null,null,null,null,null,null,"GONZALEZ, RODRIGO","20-34530035-0",370766]
[null,null,null,null,null,null,null,null,null,null,null,null,null,null,null,null,null,null,"GOREN, NORA JUDITH","27-16579612-3",630263]
[null,null,null,null,null,null,null,null,null,null,null,null,null,null,null,null,null,null,"GRASSO, SEBASTIAN ALEJANDRO","20-32147020-4",370759]
[null,null,null,null,null,null,null,null,null,null,null,null,null,null,null,null,null,null,"GUEVARA, LORENA PAOLA","27-24771566-0",344260]
[null,null,null,null,null,null,null,null,null,null,null,null,null,null,null,null,null,null,"GUSSO, MAYRA JIMENA","27-32609704-2",344153]
[null,null,null,null,null,null,null,null,null,null,null,null,null,null,null,null,null,null,"GUTIERREZ, DANIEL EDUARDO","20-17953708-8",9003253]
[null,null,null,null,null,null,null,null,null,null,null,null,null,null,null,null,null,null,"HANDULA, CAMILA","27-42596756-3",375318]
[null,null,null,null,null,null,null,null,null,null,null,null,null,null,null,null,null,null,"HERRERA, RICARDO GUILLERMO","20-27947624-8",359715]
[null,null,null,null,null,null,null,null,null,null,null,null,null,null,null,null,null,null,"HIDALGO, MARIANA SOLEDAD","23-38300865-4",374903]
[null,null,null,null,null,null,null,null,null,null,null,null,null,null,null,null,null,null,"IBAÑEZ, CAROLINA","27-38533720-0",750490]
[null,null,null,null,null,null,null,null,null,null,null,null,null,null,null,null,null,null,"IGLESIAS, GUILLERMINA","27-30728333-1",361117]
[null,null,null,null,null,null,null,null,null,null,null,null,null,null,null,null,null,null,"IMPERIALI, JORGE ANTONIO","20-14989296-7",354740]
[null,null,null,null,null,null,null,null,null,null,null,null,null,null,null,null,null,null,"JAIME, MARIA FERNANDA","27-31301666-3",363352]
[null,null,null,null,null,null,null,null,null,null,null,null,null,null,null,null,null,null,"LAMAITA, LUCIANO","20-28150357-0",750504]
[null,null,null,null,null,null,null,null,null,null,null,null,null,null,null,null,null,null,"LAVEZZARO, MARÍA VICTORIA","27-22404446-7",344154]
[null,null,null,null,null,null,null,null,null,null,null,null,null,null,null,null,null,null,"LLANAS, CAMILA TRINIDAD","27-38560273-7",370767]
[null,null,null,null,null,null,null,null,null,null,null,null,null,null,null,null,null,null,"LOFEUDO, ROSANA","27-17419645-7",359716]
[null,null,null,null,null,null,null,null,null,null,null,null,null,null,null,null,null,null,"LONGONI, JUAN","23-22851935-9",344155]
[null,null,null,null,null,null,null,null,null,null,null,null,null,null,null,null,null,null,"LOPEZ, ELIDA MARIANA","27-25952826-2",370765]
[null,null,null,null,null,null,null,null,null,null,null,null,null,null,null,null,null,null,"LOZZIA, SANTIAGO LEONEL","20-38545731-7",370764]
[null,null,null,null,null,null,null,null,null,null,null,null,null,null,null,null,null,null,"MADERNA, CRISTHIAN RICARDO","20-35940856-1",359717]
[null,null,null,null,null,null,null,null,null,null,null,null,null,null,null,null,null,null,"MADOERY, MARIA ELENA","27-17512796-3",0]
[null,null,null,null,null,null,null,null,null,null,null,null,null,null,null,null,null,null,"MALACALZA, JOSÉ","20-33590417-7",361110]
[null,null,null,null,null,null,null,null,null,null,null,null,null,null,null,null,null,null,"MANTESA, AUGUSTO MANUEL","20-26216326-2",316436]
[null,null,null,null,null,null,null,null,null,null,null,null,null,null,null,null,null,null,"MANZOLIDO, EXEQUIEL MATIAS","20-27843686-2",375314]
[null,null,null,null,null,null,null,null,null,null,null,null,null,null,null,null,null,null,"MARCHISSIO, ALICIA BEATRIZ","27-20849128-3",316437]
[null,null,null,null,null,null,null,null,null,null,null,null,null,null,null,null,null,null,"MAROTTA, ALEJANDRO MARCELO","20-13094114-2",359719]
[null,null,null,null,null,null,null,null,null,null,null,null,null,null,null,null,null,null,"MARSICO, GISELA MARÍA","27-29577382-6",361080]
[null,null,null,null,null,null,null,null,null,null,null,null,null,null,null,null,null,null,"MARTINOLI, TOMAS PEDRO","20-40653701-4",374043]
[null,null,null,null,null,null,null,null,null,null,null,null,null,null,null,null,null,null,"MASCARA, AGUSTINA BELEN","27-42392968-0",375463]
[null,null,null,null,null,null,null,null,null,null,null,null,null,null,null,null,null,null,"MASPOLI, JESICA NORALÍ","23-32393542-4",344263]
[null,null,null,null,null,null,null,null,null,null,null,null,null,null,null,null,null,null,"MASPOLI, JUAN IGNACIO","20-39335714-3",365974]
[null,null,null,null,null,null,null,null,null,null,null,null,null,null,null,null,null,null,"MASSACCESI, FERNANDO DANIEL","20-12991057-8",344264]
[null,null,null,null,null,null,null,null,null,null,null,null,null,null,null,null,null,null,"MC CLELLAND, VIVIAN CAROLINA","27-20716630-3",316438]
[null,null,null,null,null,null,null,null,null,null,null,null,null,null,null,null,null,null,"MELA, LORENA SILVIA","27-26251848-0",330078]
[null,null,null,null,null,null,null,null,null,null,null,null,null,null,null,null,null,null,"MENDES TELLO, ANACLARA","27-36652162-9",374988]
[null,null,null,null,null,null,null,null,null,null,null,null,null,null,null,null,null,null,"MERCADO, SANTIAGO","23-38865234-9",363353]
[null,null,null,null,null,null,null,null,null,null,null,null,null,null,null,null,null,null,"MIHALJEVIC, ROMINA ANDREA","27-26058028-6",316439]
[null,null,null,null,null,null,null,null,null,null,null,null,null,null,null,null,null,null,"MONTEOLIVA, DIANA BEATRIZ","27-16727937-1",288201]
[null,null,null,null,null,null,null,null,null,null,null,null,null,null,null,null,null,null,"NUÑEZ MONASTERIO, FACUNDO","20-32714793-6",894042]
[null,null,null,null,null,null,null,null,null,null,null,null,null,null,null,null,null,null,"NUÑEZ, HORACIO","20-16875197-5",316441]
[null,null,null,null,null,null,null,null,null,null,null,null,null,null,null,null,null,null,"OLIVERA, KARINA ANDREA","27-27624566-5",344156]
[null,null,null,null,null,null,null,null,null,null,null,null,null,null,null,null,null,null,"OLIVERA, MARTIN NICOLAS","20-35611287-4",363358]
[null,null,null,null,null,null,null,null,null,null,null,null,null,null,null,null,null,null,"OSUNA, HECTOR HUGO","20-17367241-2",338549]
[null,null,null,null,null,null,null,null,null,null,null,null,null,null,null,null,null,null,"OTEIZA, DANIEL ESTEBAN","20-26376356-5",344265]
[null,null,null,null,null,null,null,null,null,null,null,null,null,null,null,null,null,null,"OVIEDO, JUAN PABLO","20-32690666-3",344266]
[null,null,null,null,null,null,null,null,null,null,null,null,null,null,null,null,null,null,"PANELO, MAURO GERMAN","20-31381442-5",709080]
[null,null,null,null,null,null,null,null,null,null,null,null,null,null,null,null,null,null,"PANQUIN, ROMINA LUCIANA","23-24674120-4",375315]
[null,null,null,null,null,null,null,null,null,null,null,null,null,null,null,null,null,null,"PASCUAL, FLORENCIA","27-37934786-5",750906]
[null,null,null,null,null,null,null,null,null,null,null,null,null,null,null,null,null,null,"PATRAULT, DENISSE ANDREA","27-32666607-1",363359]
[null,null,null,null,null,null,null,null,null,null,null,null,null,null,null,null,null,null,"PAULINO, JOSÉ IGNACIO","20-29371573-5",344467]
[null,null,null,null,null,null,null,null,null,null,null,null,null,null,null,null,null,null,"PENA, JUAN MATIAS","20-31799609-9",361118]
[null,null,null,null,null,null,null,null,null,null,null,null,null,null,null,null,null,null,"PEREZ, GERONIMO LEON","20-24421706-1",344157]
[null,null,null,null,null,null,null,null,null,null,null,null,null,null,null,null,null,null,"PEREZ, GRACIELA ELIZABETH","27-20693169-3",307828]
[null,null,null,null,null,null,null,null,null,null,null,null,null,null,null,null,null,null,"PEREZ, PAULA DANIELA","20-25711063-0",316417]
[null,null,null,null,null,null,null,null,null,null,null,null,null,null,null,null,null,null,"PONCIO, MARIA ERICA","27-20252572-0",316442]
[null,null,null,null,null,null,null,null,null,null,null,null,null,null,null,null,null,null,"PONZINIBBIO, JERONIMO","20-11607989-6",318271]
[null,null,null,null,null,null,null,null,null,null,null,null,null,null,null,null,null,null,"PORCEL DE PERALTA, ENZO IGNACIO","20-37386613-0",363361]
[null,null,null,null,null,null,null,null,null,null,null,null,null,null,null,null,null,null,"POZZI, LUIS ALBERTO","23-18251112-9",275274]
[null,null,null,null,null,null,null,null,null,null,null,null,null,null,null,null,null,null,"PUJOL, ABEL OMAR","20-38045546-4",363377]
[null,null,null,null,null,null,null,null,null,null,null,null,null,null,null,null,null,null,"RAMIREZ, MARCELO ANGEL","20-18638381-9",316444]
[null,null,null,null,null,null,null,null,null,null,null,null,null,null,null,null,null,null,"RETAMOZO, JOSE EUCLIDES","20-16875895-3",238080]
[null,null,null,null,null,null,null,null,null,null,null,null,null,null,null,null,null,null,"RICARDI, EDUARDO JOSE","20-24040761-3",316445]
[null,null,null,null,null,null,null,null,null,null,null,null,null,null,null,null,null,null,"RINGUELET, TOMAS JORGE","20-32008432-7",370763]
[null,null,null,null,null,null,null,null,null,null,null,null,null,null,null,null,null,null,"RODRIGO, DIEGO","20-31378466-6",374001]
[null,null,null,null,null,null,null,null,null,null,null,null,null,null,null,null,null,null,"RODRIGUEZ, ANGEL MAXIMILIANO","20-26464028-9",359741]
[null,null,null,null,null,null,null,null,null,null,null,null,null,null,null,null,null,null,"RODRIGUEZ, CARLOS ALBERTO","20-32533461-5",359728]
[null,null,null,null,null,null,null,null,null,null,null,null,null,null,null,null,null,null,"RODRIGUEZ, JOAQUIN","20-28948080-4",359729]
[null,null,null,null,null,null,null,null,null,null,null,null,null,null,null,null,null,null,"ROMERO, FERNANDO GABRIEL","20-28991487-1",375324]
[null,null,null,null,null,null,null,null,null,null,null,null,null,null,null,null,null,null,"ROSSI, MARIA FERNANDA","27-17919751-6",307829]
[null,null,null,null,null,null,null,null,null,null,null,null,null,null,null,null,null,null,"RUCCI, MAURICIO ANTONIO","23-25869329-9",359730]
[null,null,null,null,null,null,null,null,null,null,null,null,null,null,null,null,null,null,"RUCCI, NICOLAS ALFREDO","20-28366950-6",370760]
[null,null,null,null,null,null,null,null,null,null,null,null,null,null,null,null,null,null,"SANCHEZ PAREDES, CARLOS ENRIQUE","20-43407747-9",0]
[null,null,null,null,null,null,null,null,null,null,null,null,null,null,null,null,null,null,"SARDI, MARTIN","20-30427336-5",344218]
[null,null,null,null,null,null,null,null,null,null,null,null,null,null,null,null,null,null,"SCHIAPPACASSE, JULIETA","27-33433500-9",363362]
[null,null,null,null,null,null,null,null,null,null,null,null,null,null,null,null,null,null,"SEGOVIA AGUIRRE, WENDDY VANESSA","27-18811106-3",344299]
[null,null,null,null,null,null,null,null,null,null,null,null,null,null,null,null,null,null,"SERRA, GABRIELA MARIEL","27-23615213-3",316447]
[null,null,null,null,null,null,null,null,null,null,null,null,null,null,null,null,null,null,"SIGNORIO, LAURA INÉS","27-28409745-4",344301]
[null,null,null,null,null,null,null,null,null,null,null,null,null,null,null,null,null,null,"SILVA, MARIELA VIVIANA","27-24882485-4",0]
[null,null,null,null,null,null,null,null,null,null,null,null,null,null,null,null,null,null,"SILVESTRI, CLAUDIA MARCELA FABI","27-22210513-2",364891]
[null,null,null,null,null,null,null,null,null,null,null,null,null,null,null,null,null,null,"SILVESTRI, JUAN JOSE","20-23799514-8",316448]
[null,null,null,null,null,null,null,null,null,null,null,null,null,null,null,null,null,null,"SIRUELA, GASTON IGNACIO","20-33108507-4",363364]
[null,null,null,null,null,null,null,null,null,null,null,null,null,null,null,null,null,null,"SIRUELA, MELISA ANDREA","27-29577266-8",359733]
[null,null,null,null,null,null,null,null,null,null,null,null,null,null,null,null,null,null,"SOTA, EZEQUIEL RICARDO","20-29132286-8",359734]
[null,null,null,null,null,null,null,null,null,null,null,null,null,null,null,null,null,null,"SQUILLACIOTI, LAURA GABRIELA","27-20058412-6",306682]
[null,null,null,null,null,null,null,null,null,null,null,null,null,null,null,null,null,null,"SUAREZ, DIANA VALERIA","27-28326908-1",0]
[null,null,null,null,null,null,null,null,null,null,null,null,null,null,null,null,null,null,"TEJEDA, SEBASTIAN","20-23792506-9",307837]
[null,null,null,null,null,null,null,null,null,null,null,null,null,null,null,null,null,null,"TOLABA, MICAELA ANAHI","27-34889281-4",363365]
[null,null,null,null,null,null,null,null,null,null,null,null,null,null,null,null,null,null,"TORRES, CINTIA PATRICIA","27-30140156-1",344303]
[null,null,null,null,null,null,null,null,null,null,null,null,null,null,null,null,null,null,"TORRES, VICENTE (H)","20-25066342-1",316451]
[null,null,null,null,null,null,null,null,null,null,null,null,null,null,null,null,null,null,"TORRES, VICENTE NICOLAS","20-42055189-5",375316]
[null,null,null,null,null,null,null,null,null,null,null,null,null,null,null,null,null,null,"TOUZA, ANDREA ROXANA","27-22669607-0",316452]
[null,null,null,null,null,null,null,null,null,null,null,null,null,null,null,null,null,null,"VALERA, ROSANA","27-12942642-5",316453]
[null,null,null,null,null,null,null,null,null,null,null,null,null,null,null,null,null,null,"VAN KEMENADE, MATIAS EZEQUIEL","20-26574278-6",0]
[null,null,null,null,null,null,null,null,null,null,null,null,null,null,null,null,null,null,"VAZQUEZ, JORGE CARLOS","20-22851794-2",316454]
[null,null,null,null,null,null,null,null,null,null,null,null,null,null,null,null,null,null,"VILLAR, ALEJANDRO","20-13925003-7",0]
[null,null,null,null,null,null,null,null,null,null,null,null,null,null,null,null,null,null,"VOLPICELLO, GISELA SOLEDAD","27-29403509-0",370761]
[null,null,null,null,null,null,null,null,null,null,null,null,null,null,null,null,null,null,"WIERZBINSKI, NAHUEL EMILIANO","20-30728704-9",344222]

{"sheet":"Orden de Servicio","index":10,"n_rows":46,"n_cols":6,"rows_kept":46,"cut":false,"hidden":true,"merged":[[36,1,36,3],[40,1,40,3],[41,1,41,3],[5,1,5,7],[7,1,7,3],[8,1,8,3],[10,1,10,7],[28,3,28,7],[29,3,29,7]]}
[]
[]
[]
[]
[]
[null,"ANEXO F"]
[]
[null,"PROVINCIA DE BUENOS AIRES"]
[null,"(COMISION DE INVESTIGACIONES CIENTIFICAS)"]
[]
[null,"ORDEN DE SERVICIO"]
[]
[null,"Apellido y Nombre"]
[null,"Tipo y Número de Documento",null,"CUIL:"]
[null,"Legajo o/Categoría"]
[null,"Comisión de Servicio"]
[null,"Lugar de Destino"]
[null,"Fechas:","Partida (dd/mm/aaaa)"]
[null,null,"Regreso (dd/mm/aaaa)"]
[null,"Objeto"]
[]
[null,"Motivación"]
[]
[]
[]
[]
[null,"Lugar y Fecha"]
[]
[null,"COMISION DISPUESTA POR",null,"DIRECTOR PROVINCIAL DE ADMINISTRACION"]
[null,null,null,"CIENTIFICA Y TECNICA"]
[]
[]
[null,null,null,null,null,"       ……………………………………….."]
[null,null,null,null,null,"         Firma y Sello del Jefe Inmediato"]
[]
[]
[null,"CONSTANCIA DE DESTINO"]
[]
[]
[]
[null,"………………………………………………..",null,null,null," ……………………………….."]
[null,"Firma y Sello de la Autoridad Competente",null,null,null,"Firma y Sello del Autorizante"]
[]
[]
[]
[null,"AUTORIZADO, pase al Departamento Liquidaciones, a sus efectos"]